{"text_format":"3","workbook":"xlsx","n_sheets":21,"sheets":["Deckblatt","Ausgaben,Finanzierung ges","Belegaufstellung PA Nr. 1","Belegaufstellung PA Nr. 2","Belegaufstellung PA Nr. 3","Belegaufstellung PA Nr. 4","Belegaufstellung PA Nr. 5","Belegaufstellung PA Nr. 6","Angaben zur Fachkraft","Personalausgaben gesamt","Belegaufstell. Verwaltungspausc","Belegaufstell.Ausstattung","Belegaufstell.sonstige SA","Belegaufstell.sonstige SA (2)","Belegaufstell.sonstige SA (3)","Belegaufstell.sonstige SA (4)","Belegaufstell.sonstige SA (5)","Belegaufstellung BM,EPM","Belegaufstellung SA Nr. 5","Belegaufstellung SA Nr. 6","Tabelle1"],"not_rendered":{"defined_names":4,"comments":3},"read":"whole","date_system":"1900"}

{"sheet":"Deckblatt","index":0,"n_rows":44,"n_cols":36,"rows_kept":44,"merged":[[2,10,2,17],[2,24,3,28],[3,0,3,8],[3,10,3,17],[4,0,5,8],[4,10,4,17],[5,10,7,17],[5,19,5,25],[5,26,5,34],[6,0,6,8],[7,0,7,8],[7,19,7,21],[7,22,7,24],[7,26,7,28],[7,30,7,32],[10,10,11,17],[11,19,12,22],[11,23,12,23],[11,24,12,27],[11,28,12,28],[11,29,11,34],[12,10,15,17],[12,29,12,34],[13,29,13,34],[14,19,15,28],[14,29,14,34],[15,29,15,34],[17,0,17,17],[17,19,17,23],[17,24,17,25],[18,0,18,17],[19,19,21,21],[19,22,21,22],[19,23,21,25],[19,26,21,26],[19,27,21,27],[19,28,21,30],[19,31,21,32],[19,33,21,34],[20,0,21,17],[23,8,23,17],[25,3,25,7],[25,8,25,11],[25,19,25,33],[27,3,27,7],[27,8,27,11],[27,30,27,32],[28,19,29,23],[29,3,29,7],[29,8,29,11],[31,3,31,7],[31,8,31,11],[32,0,32,3],[33,0,33,3],[35,0,35,5],[35,7,35,11],[35,13,35,17],[36,0,36,3],[38,0,38,16],[42,1,42,4],[42,12,42,17]]}
["Landeshauptstadt Dresden - Jugendamt",{"$nulls":16},"Anteilsfinanzierung Schulsozialarbeit",null,"Landeshauptstadt Dresden - Jugendamt",{"$nulls":5},"Anteilsfinanzierung Schulsozialarbeit",{"$nulls":5},"AZ:",{"$f":"K4","v":0}]
[]
["Zuwendungsempfänger",{"$nulls":9},"Aktenzeichen:",{"$nulls":13},"Prüfungsvermerk"]
[]
[{"$nulls":10},"Angebotsbezeichnung:",{"$nulls":8},"Zuwendungsempfänger:",{"$nulls":6},"Angebotsbezeichnung:"]
[{"$nulls":19},{"$f":"A4","v":0},{"$nulls":6},"=K6"]
[{"$nulls":23},"Termin",null,"Verwendungsnachweis vom:",{"$nulls":4},"Posteingang LHD am:"]
[{"$nulls":19},"Verwendungs-\nnachweis:"]
[]
[]
["Antrags- und Bewilligungshörde:                                                                                                                                                                                                                                                                                    ",{"$nulls":9},"Abgabefrist siehe Zuwendungsbescheid!",{"$nulls":8},"Bewilligungsbetrag:",{"$nulls":4},"ausgezahlte Zuwendung:",{"$nulls":4},"Bescheiddatum/Bescheidtitel:"]
["Landeshauptstadt Dresden",{"$nulls":18},{"$f":"I26","v":{"v":0,"d":"0.00"}},{"$nulls":3},"Euro",{"$f":"I28","v":{"v":0,"d":"0.00"}},{"$nulls":3},"Euro",{"$nulls":6},"Zahlen prüfen!"]
["Jugendamt, Abt. Kinder-, Jugend- und",{"$nulls":9},"Mit einzureichen sind die Originalbelege und Verträge sortiert entsprechend der Belegaufstellung und der Sachbericht (extra Formular)!"]
["Familienförderung, SG Zuschusswesen",{"$nulls":18},"Bewilligungszeitraum:"]
["Postfach 12 00 20",{"$nulls":18},{"$f":"I24","v":0}]
["01001 Dresden "]
[{"$nulls":19},"Bewilligungsart:",{"$nulls":4},"Fördersatz in %:"]
["Verwendungsnachweis Schulsozialarbeit",{"$nulls":18},"Anteilsfinanzierung",{"$nulls":4},{"$f":"'Ausgaben,Finanzierung ges'!M27","v":{"v":0,"d":"0.00"}},{"$nulls":10},"Zahlen prüfen!"]
[" - Zahlenmäßiger Nachweis Anteilsfinanzierung -",{"$nulls":18},"abgerechnete Mittel:",{"$nulls":3},"Nicht verwendete Mittel:",{"$nulls":3},"Rückforderung nicht verwendeten Mittel:"]
[{"$nulls":19},{"$f":"I30","v":{"v":0,"d":"0.00"}},null,null,"Euro",{"$f":"I32","v":{"v":0,"d":"0.00"}},null,null,"Euro","am:",{"$nulls":3},"Eingang bzw. gesetzte Frist:"]
["Hinweis für Nutzer des Excel-Formulars: Die fett gerahmten Felder weisen darauf hin, dass sie auszufüllen sind, andere Felder enthalten Zellenverknüpfungen oder Formeln. Gilt nicht für Nutzer der PDF-Datei (Handausfüller)!"]
[]
[]
["Bewilligungs-/Abrechnungszeitraum:",{"$nulls":18},"Zahlenmäßiger Nachweis",{"$nulls":4},"Belegaufstellung",{"$nulls":3},"Belege",null,"Zahlungsnachweise"]
["Abrechnung der Zuwendung:",{"$nulls":18},"In folgenden Bereichen wurde teilweise/stichprobenartig geprüft:"]
[{"$nulls":3},"Bewilligte Zuwendung:",{"$nulls":8},"Euro"]
[]
[{"$nulls":3},"Ausgezahlte Zuwendung:",{"$nulls":8},"Euro",{"$nulls":6},"Prüfungsergebnis:",{"$nulls":6},"Erstattungsanspruch:",{"$nulls":3},{"$f":"'Ausgaben,Finanzierung ges'!Z30","v":{"v":0,"d":"0.00"}},null,null,"Euro"]
[{"$nulls":19},"Beanstandungen:"]
[{"$nulls":3},"Abrechnung der Zuwendung:",{"$nulls":4},{"$f":"'Ausgaben,Finanzierung ges'!L29","v":0},{"$nulls":3},"Euro"]
[]
[{"$nulls":3},"Erstattungsbetrag:",{"$nulls":4},{"$f":"IF(I28=0,I26-I30,(IF(I30<I28,I28-I30,0)))","v":0},{"$nulls":3},"Euro"]
[]
["Bearbeiter/-in)"]
["Name, Funktion",{"$nulls":6},"Tel.-/Fax-Nr.",{"$nulls":5},"E-Mail-Adresse"]
[]
[]
["Bestätigung des Zuwendungsempfängers"]
["Es wird bestätigt, dass die Ausgaben notwendig waren, wirtschaftlich und sparsam verfahren worden ist,  die Angaben mit den Büchern und Belegen übereinstimmen und die Echtheit der Herkunft und Unversehrtheit des Inhaltes der Belege gewährleistet ist."]
["Es liegt eine Vorsteuerabzugsberechtigung vor: ",{"$nulls":8},"Ja",null,"Nein",null,"(Zutreffendes ankreuzen)"]
["(Die Ausgaben sind - sofern eine  Vorsteuerabzugsberechtigung vorliegt - ohne Umsatzsteuer auszuweisen.)"]
[]
[]
[null,"Ort, Datum",{"$nulls":4},"rechtsverbindliche Unterschrift(en)",{"$nulls":5},"in Block-/PC-Schrift",{"$nulls":6},"Datum, Name, Unterschrift Prüfer"]

{"sheet":"Ausgaben,Finanzierung ges","index":1,"n_rows":32,"n_cols":35,"rows_kept":32,"merged":[[0,12,0,14],[0,28,0,30],[1,0,1,14],[1,16,1,30],[3,0,3,14],[3,22,4,24],[3,25,4,27],[3,28,4,30],[4,12,5,14],[4,16,4,21],[6,1,6,8],[6,9,6,11],[6,12,6,14],[6,17,6,18],[6,19,6,21],[6,22,6,24],[6,25,6,27],[6,28,6,30],[7,1,7,8],[7,9,7,11],[7,12,7,14],[7,17,7,18],[7,19,7,21],[7,22,7,24],[7,25,7,27],[7,28,7,30],[8,1,8,8],[8,9,8,11],[8,12,8,14],[8,17,8,18],[8,19,8,21],[8,22,8,24],[8,25,8,27],[8,28,8,30],[9,1,9,8],[9,9,9,11],[9,12,9,14],[9,17,9,18],[9,19,9,21],[9,22,9,24],[9,25,9,27],[9,28,9,30],[10,1,10,8],[10,9,10,11],[10,12,10,14],[10,17,10,18],[10,19,10,21],[10,22,10,24],[10,25,10,27],[10,28,10,30],[11,1,11,8],[11,9,11,11],[11,12,11,14],[11,17,11,18],[11,19,11,21],[11,22,11,24],[11,25,11,27],[11,28,11,30],[12,1,12,8],[12,9,12,11],[12,12,12,14],[12,19,12,21],[12,22,12,24],[12,25,12,27],[12,28,12,30],[13,9,13,11],[13,12,13,14],[13,16,13,18],[13,19,13,21],[13,22,13,24],[13,25,13,27],[13,28,13,30],[14,0,14,14],[14,22,15,24],[14,25,15,27],[14,28,15,30],[15,12,16,14],[15,16,15,21],[17,1,17,8],[17,9,17,11],[17,12,17,14],[17,17,17,18],[17,19,17,21],[17,22,17,24],[17,25,17,27],[17,28,17,30],[18,1,18,8],[18,9,18,11],[18,12,18,14],[18,17,18,18],[18,19,18,21],[18,22,18,24],[18,25,18,27],[18,28,18,30],[19,1,19,8],[19,9,19,11],[19,12,19,14],[19,17,19,18],[19,19,19,21],[19,22,19,24],[19,25,19,27],[19,28,19,30],[20,1,20,8],[20,9,20,11],[20,12,20,14],[20,17,20,18],[20,19,20,21],[20,22,20,24],[20,25,20,27],[20,28,20,30],[21,1,21,8],[21,9,21,11],[21,12,21,14],[21,17,21,18],[21,19,21,21],[21,22,21,24],[21,25,21,27],[21,28,21,30],[22,1,22,8],[22,9,22,11],[22,12,22,14],[22,17,22,18],[22,19,22,21],[22,22,22,24],[22,25,22,27],[22,28,22,30],[23,9,23,11],[23,12,23,14],[23,16,23,18],[23,19,23,21],[23,22,23,24],[23,25,23,27],[23,28,23,30],[24,9,24,11],[24,12,24,14],[24,16,24,27],[24,28,24,30],[25,16,26,24],[25,25,26,27],[25,28,27,30],[26,4,26,11],[26,12,26,14],[27,0,27,6],[27,7,27,10],[27,11,27,14],[27,16,27,24],[27,25,27,27],[28,0,28,6],[28,7,28,10],[28,11,28,14],[28,16,28,24],[28,25,28,27],[28,28,28,30],[29,7,29,10],[29,11,29,14],[29,25,29,30],[30,0,30,6],[30,7,30,10],[30,11,30,14],[30,16,31,24],[30,25,31,30],[31,11,32,14]]}
["Landeshauptstadt Dresden - Jugendamt",{"$nulls":6},{"$f":"Deckblatt!R1","v":"Anteilsfinanzierung Schulsozialarbeit"},{"$nulls":3},"AZ:",{"$f":"Deckblatt!K4","v":0},{"$nulls":3},"Landeshauptstadt Dresden - Jugendamt",{"$nulls":5},"Prüfung Schulsozialarbeit",{"$nulls":4},"AZ:",{"$f":"M1","v":0}]
["Ausgaben und Finanzierung",{"$nulls":15},"Ermittlung der zuwendungsfähigen Ausgaben"]
[]
["Personalausgaben",{"$nulls":15},"Personalausgaben",{"$nulls":5},"nachgewiesene Ausgaben\nim VWN",null,null,"zuwendungsfähige Ausgaben (Prüfungsergebnis)",null,null,"Überschreitung  Ausgabeansätze (zuwendungsfähige) um mehr als 20% "]
["Angaben im Zuwendungsbescheid (Ausgabeansätze)",{"$nulls":11},"Verwendungs-\nnachweis\n (Beträge aus der Belegaufstellung)",{"$nulls":3},"Zuwendungsbescheid (Ausgabeansätze)"]
["Bezeichnung",{"$nulls":8},"in Euro",{"$nulls":6},"Nr.",null,null,"in Euro",null,null,"in Euro",null,null,"in Euro",null,null,"in Euro"]
[1,{"$nulls":11},{"$f":"'Belegaufstellung PA Nr. 1'!F25","v":0},{"$nulls":3},1,{"$f":"B7","v":0},null,{"$f":"J7","v":{"v":0,"d":"0.00 "}},null,null,{"$f":"'Belegaufstellung PA Nr. 1'!H25","v":{"v":0,"d":"0.00 "}},{"$nulls":5},{"$f":"IF(Z7<(120*J7/100),0,Z7-((120*J7/100)))","v":{"v":0,"d":"0.00 "}},null,null,"Zahlen Spalte T-V prüfen!"]
[2,{"$nulls":11},{"$f":"'Belegaufstellung PA Nr. 2'!F27","v":0},{"$nulls":3},2,{"$f":"B8","v":0},null,{"$f":"J8","v":{"v":0,"d":"0.00 "}},null,null,{"$f":"'Belegaufstellung PA Nr. 2'!H27","v":{"v":0,"d":"0.00 "}},{"$nulls":5},{"$f":"IF(Z8<(120*J8/100),0,Z8-((120*J8/100)))","v":{"v":0,"d":"0.00 "}}]
[3,{"$nulls":11},{"$f":"'Belegaufstellung PA Nr. 3'!F27","v":0},{"$nulls":3},3,0,null,{"v":0,"d":"0.00 "},null,null,{"$f":"'Belegaufstellung PA Nr. 3'!H27","v":{"v":0,"d":"0.00 "}},{"$nulls":5},{"v":0,"d":"0.00 "},{"$nulls":5},"                                                                                                                                                                                                                                                                                                                                                                                                                                                                                                                                                                                                                                                                                                                                                                                                                                                                                                                                                                                                                                                                                                                                                                                                                                                                                                                                                                                                                                                                                                                                                                                                                                                                                                                                                                                                                                                                                                                                                                                                                                                                                                                           "]
[4,{"$nulls":11},{"$f":"'Belegaufstellung PA Nr. 4'!F27","v":0},{"$nulls":3},4,0,null,{"v":0,"d":"0.00 "},null,null,{"$f":"'Belegaufstellung PA Nr. 4'!H27","v":{"v":0,"d":"0.00 "}},{"$nulls":5},{"v":0,"d":"0.00 "}]
[5,{"$nulls":11},{"$f":"'Belegaufstellung PA Nr. 5'!F27","v":0},{"$nulls":3},5,0,null,{"v":0,"d":"0.00 "},null,null,{"$f":"'Belegaufstellung PA Nr. 5'!H27","v":{"v":0,"d":"0.00 "}},{"$nulls":5},{"v":0,"d":"0.00 "}]
[6,{"$nulls":11},{"$f":"'Belegaufstellung PA Nr. 6'!F27","v":0},{"$nulls":3},6,0,null,{"v":0,"d":"0.00 "},null,null,{"$f":"'Belegaufstellung PA Nr. 6'!H27","v":{"v":0,"d":"0.00 "}},{"$nulls":5},{"v":0,"d":"0.00 "}]
[null,"Berufsgenossenschaft",{"$nulls":10},{"$f":"'Belegaufstellung PA Nr. 1'!F6","v":0},{"$nulls":3},"BG",null,null,{"$f":"J13","v":{"v":0,"d":"0.00 "}},null,null,{"$f":"'Belegaufstellung PA Nr. 1'!H6","v":{"v":0,"d":"0.00 "}},null,null,{"$f":"'Belegaufstellung PA Nr. 1'!I6","v":{"v":0,"d":"0.00 "}},null,null,{"v":0,"d":"0.00 "}]
[{"$nulls":8},"Personalausgaben gesamt:",{"$f":"SUM(J7:L13)","v":0},null,null,{"$f":"SUM(M7:O13)","v":0},{"$nulls":3},"gesamt:",null,null,{"$f":"SUM(T7:V13)","v":{"v":0,"d":"0.00 "}},null,null,{"$f":"SUM(W7:Y13)","v":{"v":0,"d":"0.00 "}},null,null,{"$f":"SUM(Z7:AB13)","v":{"v":0,"d":"0.00 "}},null,null,{"$f":"SUM(AC7:AE13)","v":{"v":0,"d":"0.00 "}}]
["Sachausgaben",{"$nulls":15},"Sachausgaben",{"$nulls":5},"nachgewiesene Ausgaben\nim VWN",null,null,"zuwendungsfähige Ausgaben (Prüfungsergebnis)",null,null,"Überschreitung  Ausgabeansätze (zuwendungsfähige) um mehr als 20% "]
["Angaben im Zuwendungsbescheid (Ausgabeansätze)",{"$nulls":11},"Verwendungs-\nnachweis\n Beträge aus der Belegaufstellung",{"$nulls":3},"Zuwendungsbescheid (Ausgabeansätze)"]
["Bezeichnung",{"$nulls":8},"in Euro",{"$nulls":6},"Nr.",null,null,"in Euro",null,null,"in Euro",null,null,"in Euro",null,null,"in Euro"]
[1,"Verwaltungspauschale",{"$nulls":10},{"$f":"'Belegaufstell. Verwaltungspausc'!F27","v":0},{"$nulls":3},1,{"$f":"B17","v":0},null,{"$f":"J18","v":{"v":0,"d":"0.00 "}},null,null,{"$f":"'Belegaufstell. Verwaltungspausc'!H27","v":{"v":0,"d":"0.00 "}},null,null,{"$f":"'Belegaufstell. Verwaltungspausc'!H27","v":{"v":0,"d":"0.00 "}},null,null,{"$f":"IF(Z18<(120*J18/100),0,Z18-((120*J18/100)))","v":{"v":0,"d":"0.00 "}}]
[2,"Ausstattung (Gegenstände über 410 Euro netto)",{"$nulls":10},{"$f":"Belegaufstell.Ausstattung!F27","v":0},{"$nulls":3},2,"Verwaltungspauschale",null,{"v":0,"d":"0.00 "},null,null,{"$f":"Belegaufstell.Ausstattung!H27","v":{"v":0,"d":"0.00 "}},null,null,{"$f":"Belegaufstell.Ausstattung!H27","v":{"v":0,"d":"0.00 "}},null,null,{"$f":"IF(Z19<(120*J19/100),0,Z19-((120*J19/100)))","v":{"v":0,"d":"0.00 "}}]
[3,"sonstige Sachausgaben",{"$nulls":10},{"$f":"SUM('Belegaufstell.sonstige SA:Belegaufstell.sonstige SA (5)'!F27)","v":0},{"$nulls":3},3,"Ausstattung (Gegenstände über 410 Euro netto)",null,{"v":0,"d":"0.00 "},null,null,{"$f":"'Belegaufstell.sonstige SA'!H27","v":{"v":0,"d":"0.00 "}},null,null,{"$f":"'Belegaufstell.sonstige SA'!H27","v":{"v":0,"d":"0.00 "}},null,null,{"v":0,"d":"0.00 "}]
[4,"Bildungsmaßnahmen/erlebnispädagogische Maßnahmen",{"$nulls":10},{"$f":"'Belegaufstellung BM,EPM'!F27","v":0},{"$nulls":3},4,"sonstige Sachausgaben",null,{"v":0,"d":"0.00 "},null,null,{"$f":"'Belegaufstellung BM,EPM'!H27","v":{"v":0,"d":"0.00 "}},null,null,{"$f":"'Belegaufstellung BM,EPM'!H27","v":{"v":0,"d":"0.00 "}},null,null,{"v":0,"d":"0.00 "}]
[5,{"$nulls":11},{"$f":"'Belegaufstellung SA Nr. 5'!F27","v":0},{"$nulls":3},5,"Bildungsmaßnahmen/erlebnispädagogische Maßnahmen",null,{"v":0,"d":"0.00 "},null,null,{"$f":"'Belegaufstellung SA Nr. 5'!H27","v":{"v":0,"d":"0.00 "}},null,null,{"$f":"'Belegaufstellung SA Nr. 5'!H27","v":{"v":0,"d":"0.00 "}},null,null,{"v":0,"d":"0.00 "}]
[6,{"$nulls":11},{"$f":"'Belegaufstellung SA Nr. 6'!F27","v":0},{"$nulls":3},6,0,null,{"v":0,"d":"0.00 "},null,null,{"$f":"'Belegaufstellung SA Nr. 6'!H27","v":{"v":0,"d":"0.00 "}},null,null,{"$f":"'Belegaufstellung SA Nr. 6'!H27","v":{"v":0,"d":"0.00 "}},null,null,{"v":0,"d":"0.00 "}]
[{"$nulls":8},"Sachausgaben gesamt:",{"$f":"SUM(J18:L23)","v":0},null,null,{"$f":"SUM(M18:O23)","v":0},{"$nulls":3},"gesamt:",null,null,{"$f":"SUM(T18:V23)","v":{"v":0,"d":"0.00 "}},null,null,{"$f":"SUM(W18:Y23)","v":{"v":0,"d":"0.00 "}},null,null,{"$f":"SUM(Z18:AB23)","v":{"v":0,"d":"0.00 "}},null,null,{"$f":"SUM(AC18:AE23)","v":{"v":0,"d":"0.00 "}}]
[{"$nulls":8},"Sach- und Personalausgaben gesamt:",{"$f":"J14+J24","v":0},null,null,{"$f":"M14+M24","v":0},{"$nulls":3},"Kann die Überschreitung der Ausgabeansätze um mehr als 20% aus Eigenmitteln finanziert werden, reduziert sich der Erstattungsanspruch auf:",{"$nulls":11},{"$f":"(AC14+AC24)-L30","v":{"v":0,"d":"0.00 "}}]
[{"$nulls":16},"zuwendungsfähige Ausgaben gesamt:",{"$nulls":8},{"$f":"Z14+Z24","v":{"v":0,"d":"0.00 "}},null,null,"Erstattungsanspruch wg. Überschreitung der Ausgabeansätze um mehr als 20% (keine Deckung über Eigenmittel)"]
["Finanzierung",{"$nulls":3},"Zuwendungsbescheid: Förderanteil Freistaat Sachsen und Landeshauptstadt Dresden in % (…von Hundert); Bewilligung Höchstbetrag)"]
["Finanzierungsquellen",{"$nulls":6},"lt. Zuwendungsbescheid\nin Euro",{"$nulls":3},"Verwendungsnachweis\nin Euro","tatsächlich",{"$nulls":3},"Förderung neu gemäß festgelegtem Förderanteil:",{"$nulls":8},{"$f":"Z26*M27/100","v":{"v":0,"d":"0.00 "}}]
["Zuwendung\n(Landesmittel + Mittel der Landeshauptstadt Dresden)",{"$nulls":6},{"$f":"Deckblatt!I26","v":0},{"$nulls":8},"Erstattungsanspruch aufgrund nicht zuwendungsfähiger Ausgaben",{"$nulls":8},{"$f":"IF(L29<Z28,0,L29-Z28)","v":{"v":0,"d":"0.00 "}},null,null,{"$f":"AC25","v":{"v":0,"d":"0.00 "}}]
["Eigenmittel des Trägers",{"$nulls":15},"Erstattungsanspruch gesamt",{"$nulls":8},{"$f":"SUM(Z29:AE29)","v":{"v":0,"d":"0.00 "}}]
["Gesamt",{"$nulls":6},{"$f":"SUM(H29:K30)","v":0},{"$nulls":3},{"$f":"L29+L30","v":0},{"$nulls":4},"Zuwendungsfähige Personalausgaben 1 VZÄ (Eintrag nur bei Oberschulen mit mehr als 1 VZÄ notwendig):"]
[{"$nulls":11},{"$f":"IF(L29>H29,\"abgerechnete Zuwendung zu hoch - Fördermittel wurden als Höchstbetrag bewilligt\",\"\")","v":""}]

{"sheet":"Belegaufstellung PA Nr. 1","index":2,"n_rows":25,"n_cols":10,"rows_kept":25,"merged":[[6,2,6,5],[24,0,24,4]]}
["Landeshauptstadt Dresden - Jugendamt",null,null,{"$f":"Deckblatt!R1","v":"Anteilsfinanzierung Schulsozialarbeit"},null,{"$f":"Deckblatt!K4","v":0},{"$nulls":3},{"$f":"F1","v":0}]
[]
["Originalbelege je Ausgabegruppe",{"$nulls":3},"Es ist das Lohnjournal mit einzureichen."]
["Die Ausgaben sind in zeitlicher Folge und voneinander getrennt aufzulisten.",{"$nulls":6},"Prüfung:"]
["Beleg-/ Buchungs-Nr.","Beleg-Datum","Tag der Zahlung","Zahlungs-\nempfänger","Zahlungsgrund \n(Kurzbezeichnung der Ausgabe)","Betrag\nin Euro",null,"nachgewiesene (belegte) Ausgaben","zuwendungs-\nfähiger Betrag","Beanstandungen"]
[{"$nulls":4},"Berufsgenossenschaft (für alle geförderten Fachkräfte)"]
["Personalausgaben Nr. 1:",null,{"$f":"'Ausgaben,Finanzierung ges'!B7","v":0}]
{"$rows_empty":17}
["Gesamt",{"$nulls":4},{"$f":"SUM(F8:F24)","v":0},null,{"$f":"SUM(H8:H24)","v":0},{"$f":"SUM(I6:I24)","v":0}]

{"sheet":"Belegaufstellung PA Nr. 2","index":3,"n_rows":27,"n_cols":10,"rows_kept":27,"merged":[[4,2,4,5],[26,0,26,4]]}
["Landeshauptstadt Dresden - Jugendamt",null,null,{"$f":"Deckblatt!R1","v":"Anteilsfinanzierung Schulsozialarbeit"},null,{"$f":"Deckblatt!K4","v":0},{"$nulls":3},{"$f":"F1","v":0}]
[]
["Originalbelege je Ausgabegruppe",{"$nulls":3},"Es ist das Lohnjournal mit einzureichen."]
["Die Ausgaben sind in zeitlicher Folge und voneinander getrennt aufzulisten."]
["Personalausgaben Nr. 2:",null,{"$f":"'Ausgaben,Finanzierung ges'!B8","v":0},{"$nulls":4},"Prüfung:"]
["Beleg-/ Buchungs-Nr.","Beleg-Datum","Tag der Zahlung","Zahlungs-\nempfänger","Zahlungsgrund\n(Kurzbezeichnung der Ausgabe)","Betrag\nin Euro",null,"nachgewiesene (belegte) Ausgaben","zuwendungs-\nfähiger Betrag","Beanstandungen"]
{"$rows_empty":20}
["Gesamt",{"$nulls":4},{"$f":"SUM(F7:F26)","v":0},null,{"$f":"SUM(H7:H26)","v":0},{"$f":"SUM(I7:I26)","v":0}]

{"sheet":"Belegaufstellung PA Nr. 3","index":4,"n_rows":27,"n_cols":10,"rows_kept":27,"merged":[[4,2,4,5],[26,0,26,4]]}
["Landeshauptstadt Dresden - Jugendamt",null,null,{"$f":"Deckblatt!R1","v":"Anteilsfinanzierung Schulsozialarbeit"},null,{"$f":"Deckblatt!K4","v":0},{"$nulls":3},{"$f":"F1","v":0}]
[]
["Originalbelege je Ausgabegruppe",{"$nulls":3},"Es ist das Lohnjournal mit einzureichen."]
["Die Ausgaben sind in zeitlicher Folge und voneinander getrennt aufzulisten."]
["Personalausgaben Nr. 3:",null,{"$f":"'Ausgaben,Finanzierung ges'!B9","v":0},{"$nulls":4},"Prüfung:"]
["Beleg-/ Buchungs-Nr.","Beleg-Datum","Tag der Zahlung","Zahlungs-\nempfänger","Zahlungsgrund\n(Kurzbezeichnung der Ausgabe)","Betrag\nin Euro",null,"nachgewiesene (belegte) Ausgaben","zuwendungs-\nfähiger Betrag","Beanstandungen"]
{"$rows_empty":20}
["Gesamt",{"$nulls":4},{"$f":"SUM(F7:F26)","v":0},null,{"$f":"SUM(H7:H26)","v":0},{"$f":"SUM(I7:I26)","v":0}]

{"sheet":"Belegaufstellung PA Nr. 4","index":5,"n_rows":27,"n_cols":10,"rows_kept":27,"merged":[[4,2,4,5],[26,0,26,4]]}
["Landeshauptstadt Dresden - Jugendamt",null,null,{"$f":"Deckblatt!R1","v":"Anteilsfinanzierung Schulsozialarbeit"},null,{"$f":"Deckblatt!K4","v":0},{"$nulls":3},{"$f":"F1","v":0}]
[]
["Originalbelege je Ausgabegruppe",{"$nulls":3},"Es ist das Lohnjournal mit einzureichen."]
["Die Ausgaben sind in zeitlicher Folge und voneinander getrennt aufzulisten."]
["Personalausgaben Nr. 4:",null,{"$f":"'Ausgaben,Finanzierung ges'!B10","v":0},{"$nulls":4},"Prüfung:"]
["Beleg-/ Buchungs-Nr.","Beleg-Datum","Tag der Zahlung","Zahlungs-\nempfänger","Zahlungsgrund \n(Kurzbezeichnung der Ausgabe)","Betrag\nin Euro",null,"nachgewiesene (belegte) Ausgaben","zuwendungs-\nfähiger Betrag","Beanstandungen"]
{"$rows_empty":20}
["Gesamt",{"$nulls":4},{"$f":"SUM(F7:F26)","v":0},null,{"$f":"SUM(H7:H26)","v":0},{"$f":"SUM(I7:I26)","v":0}]

{"sheet":"Belegaufstellung PA Nr. 5","index":6,"n_rows":27,"n_cols":10,"rows_kept":27,"merged":[[4,2,4,5],[26,0,26,4]]}
["Landeshauptstadt Dresden - Jugendamt",null,null,{"$f":"Deckblatt!R1","v":"Anteilsfinanzierung Schulsozialarbeit"},null,{"$f":"Deckblatt!K4","v":0},{"$nulls":3},{"$f":"F1","v":0}]
[]
["Originalbelege je Ausgabegruppe",{"$nulls":3},"Es ist das Lohnjournal mit einzureichen."]
["Die Ausgaben sind in zeitlicher Folge und voneinander getrennt aufzulisten."]
["Personalausgaben Nr. 5:",null,{"$f":"'Ausgaben,Finanzierung ges'!B11","v":0},{"$nulls":4},"Prüfung:"]
["Beleg-/ Buchungs-Nr.","Beleg-Datum","Tag der Zahlung","Zahlungs-\nempfänger","Zahlungsgrund \n(Kurzbezeichnung der Ausgabe)","Betrag\nin Euro",null,"nachgewiesene (belegte) Ausgaben","zuwendungs-\nfähiger Betrag","Beanstandungen"]
{"$rows_empty":20}
["Gesamt",{"$nulls":4},{"$f":"SUM(F7:F26)","v":0},null,{"$f":"SUM(H7:H26)","v":0},{"$f":"SUM(I7:I26)","v":0}]

{"sheet":"Belegaufstellung PA Nr. 6","index":7,"n_rows":27,"n_cols":10,"rows_kept":27,"merged":[[4,2,4,5],[26,0,26,4]]}
["Landeshauptstadt Dresden - Jugendamt",null,null,{"$f":"Deckblatt!R1","v":"Anteilsfinanzierung Schulsozialarbeit"},null,{"$f":"Deckblatt!K4","v":0},{"$nulls":3},{"$f":"F1","v":0}]
[]
["Originalbelege je Ausgabegruppe",{"$nulls":3},"Es ist das Lohnjournal mit einzureichen."]
["Die Ausgaben sind in zeitlicher Folge und voneinander getrennt aufzulisten."]
["Personalausgaben Nr. 6:",null,{"$f":"'Ausgaben,Finanzierung ges'!B12","v":0},{"$nulls":4},"Prüfung:"]
["Beleg-/ Buchungs-Nr.","Beleg-Datum","Tag der Zahlung","Zahlungs-\nempfänger","Zahlungsgrund\n(Kurzbezeichnung der Ausgabe)","Betrag\nin Euro",null,"nachgewiesene (belegte) Ausgaben","zuwendungs-\nfähiger Betrag","Beanstandungen"]
{"$rows_empty":20}
["Gesamt",{"$nulls":4},{"$f":"SUM(F7:F26)","v":0},null,{"$f":"SUM(H7:H26)","v":0},{"$f":"SUM(I7:I26)","v":0}]

{"sheet":"Angaben zur Fachkraft","index":8,"n_rows":58,"n_cols":22,"rows_kept":58,"merged":[[0,13,0,15],[3,12,3,15],[3,17,20,22],[6,0,6,4],[6,6,6,8],[6,10,6,15],[8,15,38,15],[9,2,9,3],[9,4,9,6],[9,7,9,9],[12,0,13,8],[15,0,16,8],[18,0,19,8],[22,9,22,13],[23,2,23,3],[23,5,23,7],[23,9,23,14],[26,8,27,13],[27,4,28,5],[29,1,29,14],[30,0,30,10],[30,13,32,14],[34,0,34,2],[34,3,34,4],[34,5,34,6],[34,7,34,8],[34,9,34,10],[34,11,34,12],[34,13,34,14],[38,0,38,2],[38,3,38,5],[38,11,38,13],[41,8,41,9],[44,0,44,2],[44,3,44,4],[44,5,44,6],[44,8,44,10],[44,11,44,12],[44,13,44,14],[44,16,44,18],[44,19,44,20],[44,21,44,22],[46,0,46,2],[46,3,46,4],[46,5,46,6],[46,8,46,10],[46,11,46,12],[46,13,46,14],[46,16,46,18],[46,19,46,20],[46,21,46,22],[48,0,48,2],[48,3,48,4],[48,5,48,6],[48,8,48,10],[48,11,48,12],[48,13,48,14],[52,0,52,3],[52,4,52,6],[52,7,53,8],[52,9,53,10],[52,11,52,12],[52,13,53,14],[54,7,54,8],[54,9,54,10],[54,13,54,14],[55,0,55,3],[55,4,55,8],[55,9,57,11],[55,12,58,14],[56,0,56,3],[56,4,56,8],[57,4,57,8]]}
["Landeshauptstadt Dresden - Jugendamt",{"$nulls":6},{"$f":"Deckblatt!R1","v":"Anteilsfinanzierung Schulsozialarbeit"},{"$nulls":4},"Az:",{"$f":"Deckblatt!K4","v":0}]
[]
[{"$nulls":7},"Angaben zur geförderten Fachkraft",{"$nulls":4},"Bewilligungszeitraum"]
[{"$nulls":7},"Blatt ist mit allen Angaben für jede geförderte Fachkraft einzureichen!",{"$nulls":4},{"$f":"Deckblatt!I24","v":0},{"$nulls":4},"Sollten mehrere Blätter benötigt werden, ist das Blatt zu kopieren (es enthält keine Verknüpfungen zu anderen Blättern).\n\nBlatt kopieren und in die Arbeitsmappe einfügen: Tabellenreiter \"Angaben zur Fachkraft\"\" mit linker Maus-Taste anklicken - Maus auf dem Reiter halten und nun rechte Maus-Taste klicken - im sich öffnenden Fenster verschieben/kopieren anklicken - im sich öffnenden Fenster unten \"Kopie erstellen\" anklicken und bei \"Einfügen vor:\" auswählen, wo das Blatt eingefügt werden soll."]
[]
["Name, Vorname",{"$nulls":5},"Geburtsdatum",{"$nulls":3},"Stellen-/Tätigkeitsbezeichnung"]
[]
[]
["Stellenbeschreibung"]
["ist beigefügt",null,"oder",null,"Stellenbeschreibung liegt\ndem Amt vor mit Datum: ",{"$nulls":6},"Sie behält ihre Gültigkeit:"]
["Ausbildung"]
["Abschluss:"]
[{"$nulls":9},"Kopie* des Abschlusses:"]
[{"$nulls":9},"ist beigefügt:",null,null,"liegt dem Amt vor:"]
["berufsbegleitende Ausbildung:"]
[{"$nulls":9},"Immatrikulationsbescheinigung:"]
[{"$nulls":9},"ist beigefügt:",null,null,"liegt dem Amt vor:"]
["Zusatzqualifikationen:"]
[{"$nulls":9},"Kopie*:"]
[{"$nulls":9},"ist beigefügt:",null,null,"liegt dem Amt vor:"]
["*Die kopierten Qualifikationsnachweise müssen mit dem Vermerk des Trägers \"Das Original hat am ... (Datum) vorgelegen\" versehen sein."]
["Vergütung"]
["in Anlehnung an den Tarif öffentlicher Dienst (TVöD bzw. TVÜ-VKA)",{"$nulls":8},"anderer Tarifvertrag (Bezeichnung)"]
["Entgeltgruppe:",{"$nulls":4},"übergeleitete(r)  Beschäftigte(r)"]
[]
["Sozialdaten (nur für \"übergeleitete Beschäftigte\")"]
["Familienstand:",null,"ledig",null,"verheiratet",null,"verwitwet",null,"Ehepartner im öffentlichen Dienst  bzw. nach dem Überleitungstarifvertrag des TVöD vergütet:"]
["Stichtag 30.09.2005",{"$nulls":3},"geschieden"]
[]
["Kinder: ","(Angaben sind für alle übergeleitete Beschäftigte zu leisten; es sind nur die Kinder zu berücksichtigen, die bis zum 31.12.2005 geboren wurden)"]
["1. Anzahl der Kinder, für welche der/die Beschäftigte im Antragszeitraum Kindergeld erhält:"]
["                       "]
[]
[]
["Geb.daten der zu berücksichtigenden Kinder:"]
[{"$nulls":3},"1. Kind",null,"2. Kind",null,"3. Kind",null,"4. Kind",null,"5. Kind",null,"6. Kind"]
["Beschäftigungszeit"]
[]
["in der o. g. Tätigkeit beschäftigt seit: ",{"$nulls":5},"Aufnahme der Tätigkeit im Angebot am:"]
[]
["Arbeitsumfang ",{"$nulls":7},"Jahresdurchschnitt:",{"$nulls":3},"in VK:"]
["Regelmäßige wöchentliche Arbeitszeit:",{"$nulls":7},{"$f":"ROUND((F45/12*D45)+(N45/12*L45)+(F47/12*D47)+(N47/12*L47)+(F49/12*D49)+(N49/12*L49),2)","v":0},null,"h/Woche",null,{"$f":"ROUND(I42/40,2)","v":0},{"$nulls":3},"Bsp.:"]
[]
["Datum (von - bis)",null,null," in Monaten",null,"Std./Woche",null,null,"Datum (von - bis)",null,null," in Monaten",null,"Std./Woche",null,null,"Datum (von - bis)",null,null," in Monaten",null,"Std./Woche"]
[{"$nulls":16},"01.01. - 31.03.",null,null,{"v":3,"d":"3.00"},null,"20"]
["Datum (von - bis)",null,null," in Monaten",null,"Std./Woche",null,null,"Datum (von - bis)",null,null," in Monaten",null,"Std./Woche",null,null,"Datum (von - bis)",null,null," in Monaten",null,"Std./Woche"]
[{"$nulls":16},"01.04. - 15.10.",null,null,{"v":6.5,"d":"6.50"},null,"40"]
["Datum (von - bis)",null,null," in Monaten",null,"Std./Woche",null,null,"Datum (von - bis)",null,null," in Monaten",null,"Std./Woche"]
[{"$nulls":16},{"$f":"IF((D45+L45+D47+L47+D49+L49)>12,\"zu viele Monate!\",\"\")","v":""}]
[]
["Lohnnebenkosten etc.",{"$nulls":3},"geringfügig beschäftigt (Minijob)"]
[]
["AG-Anteile SV in %",{"$nulls":3},"Umlage-Verfahren der Krankenkassen in %",null,null,"AG-Prozentsatz gesamt",null,"AG-Anteile ges.               in EUR",null,"VWL in EUR",null,"bAV/Jahr                 in EUR"]
["PV","RV","AV","KV","U1","U2","IU",{"$nulls":4},"im Monat","im Jahr"]
[{"$nulls":7},{"$f":"SUM(A55:G55)","v":0}]
["PV: Pflegeversicherung                                RV: Rentenversicherung",{"$nulls":3},"U1: Lohnfortzahl.verfahren der Krankenkassen im Krankheitsfall",{"$nulls":4},"VWL: Vermögens- wirksame Leistungen für 1,0 VK > max. 6,65 € pro Monat",null,null,"bAV: die Arbeit-geberaufwen-dungen für eine betriebl. Alters-vorsorge sind max. in Höhe der städtischen Altersvorsorge (ZVK) zuwendungsfähig. "]
["AV: Arbeitslosenversicherung                         KV: Krankenversicherung",{"$nulls":3},"U2: Lohnfortzahlungsverfahren der Krankenkassen bei Mutterschaft"]
[{"$nulls":4},"IU: Insolvenzgeldumlage an die KK (ausgenommen Körperschaften des öff. Rechts)"]

{"sheet":"Personalausgaben gesamt","index":9,"n_rows":12,"n_cols":9,"rows_kept":12,"merged":[[3,2,3,3],[4,2,4,3],[5,2,5,3],[6,2,6,3],[7,2,7,3],[8,2,8,3],[9,0,9,4],[10,0,10,1],[10,2,10,3],[11,0,11,6]]}
["Landeshauptstadt Dresden - Jugendamt",{"$nulls":4},{"$f":"Deckblatt!R1","v":"Anteilsfinanzierung Schulsozialarbeit"},null,"AZ:",{"$f":"Deckblatt!K4","v":0}]
["Angaben zu den geförderten Fachkräften"]
["lfd. Nr.","Name, Vorname","Æ","wöch. Arb.z.in Std.*","in VZÄ","Ausgaben\nin Euro\n(Wertübernahme aus Belegaufstellung)","Ausgaben enthalten leistungsorientierte Bezahlung gemäß \n§ 18 TVöD i. H. v.\nin Euro","Ausgaben enthalten Zuschläge i. H. v.\nin Euro","Art der Zuschläge/Zulagen"]
[1,{"$nulls":4},{"$f":"'Belegaufstellung PA Nr. 1'!F25","v":0}]
[2,{"$nulls":4},{"$f":"'Belegaufstellung PA Nr. 2'!F27","v":0}]
[3,{"$nulls":4},{"$f":"'Belegaufstellung PA Nr. 3'!F27","v":0}]
[4,{"$nulls":4},{"$f":"'Belegaufstellung PA Nr. 4'!F27","v":0}]
[5,{"$nulls":4},{"$f":"'Belegaufstellung PA Nr. 5'!F27","v":0}]
[6,{"$nulls":4},{"$f":"'Belegaufstellung PA Nr. 6'!F27","v":0}]
["Berufsgenossenschaft \n(i. d. R. des Vorjahres, Ausgabenanfall aber im Abrechnungszeitraum, jedoch nach dem 28.02.)"]
["Summe",null,{"$f":"SUM(C4:D9)","v":0},null,{"$f":"SUM(E4:E9)","v":0},{"$f":"SUM(F4:F10)","v":0},{"$f":"SUM(G4:G9)","v":0},{"$f":"SUM(H4:H9)","v":0}]
["* Die geforderte regelmäßige wöchentliche Arbeitszeit bleibt von dem Ergebnis (Jahresdurchschnitt) unberührt."]

{"sheet":"Belegaufstell. Verwaltungspausc","index":10,"n_rows":27,"n_cols":11,"rows_kept":27,"merged":[[4,2,4,5],[5,10,5,15],[26,0,26,4]]}
["Landeshauptstadt Dresden - Jugendamt",null,null,{"$f":"Deckblatt!R1","v":"Anteilsfinanzierung Schulsozialarbeit"},null,{"$f":"Deckblatt!K4","v":0},{"$nulls":3},{"$f":"F1","v":0}]
[]
["Originalbelege je Ausgabegruppe"]
["Die Ausgaben sind in zeitlicher Folge und voneinander getrennt aufzulisten."]
["Sachausgaben Nr. 1:",null,{"$f":"'Ausgaben,Finanzierung ges'!B18","v":"Verwaltungspauschale"},{"$nulls":4},"Prüfung:"]
["Beleg-/ Buchungs-Nr.","Beleg-Datum","Tag der Zahlung","Zahlungs-\nempfänger","Zahlungsgrund \n(Kurzbezeichnung der Ausgabe)","Betrag\nin Euro",null,"nachgewiesene (belegte) Ausgaben","zuwendungs-\nfähiger Betrag","Beanstandungen","Zuwendungsfähiger Betrag ohne Berücksichtigung von ggf. Überschreitungen der 20%Regel!"]
{"$rows_empty":20}
["Gesamt",{"$nulls":4},{"$f":"SUM(F7:F26)","v":0},null,{"$f":"SUM(H7:H26)","v":0},{"$f":"SUM(I7:I26)","v":0}]

{"sheet":"Belegaufstell.Ausstattung","index":11,"n_rows":27,"n_cols":10,"rows_kept":27,"merged":[[4,2,4,5],[26,0,26,4]]}
["Landeshauptstadt Dresden - Jugendamt",null,null,{"$f":"Deckblatt!R1","v":"Anteilsfinanzierung Schulsozialarbeit"},null,{"$f":"Deckblatt!K4","v":0},{"$nulls":3},{"$f":"F1","v":0}]
[]
["Originalbelege je Ausgabegruppe"]
["Die Ausgaben sind in zeitlicher Folge und voneinander getrennt aufzulisten."]
["Sachausgaben Nr. 2:",null,{"$f":"'Ausgaben,Finanzierung ges'!B19","v":"Ausstattung (Gegenstände über 410 Euro netto)"},{"$nulls":4},"Prüfung:"]
["Beleg-/ Buchungs-Nr.","Beleg-Datum","Tag der Zahlung","Zahlungs-\nempfänger","Zahlungsgrund \n(Kurzbezeichnung der Ausgabe)","Betrag\nin Euro",null,"nachgewiesene (belegte) Ausgaben","zuwendungs-\nfähiger Betrag","Beanstandungen"]
{"$rows_empty":20}
["Gesamt",{"$nulls":4},{"$f":"SUM(F7:F26)","v":0},null,{"$f":"SUM(H7:H26)","v":0},{"$f":"SUM(I7:I26)","v":0}]

{"sheet":"Belegaufstell.sonstige SA","index":12,"n_rows":27,"n_cols":10,"rows_kept":27,"merged":[[26,0,26,4]]}
["Landeshauptstadt Dresden - Jugendamt",null,null,{"$f":"Deckblatt!R1","v":"Anteilsfinanzierung Schulsozialarbeit"},null,{"$f":"Deckblatt!K4","v":0},{"$nulls":3},{"$f":"F1","v":0}]
[]
["Originalbelege je Ausgabegruppe"]
["Die Ausgaben sind in zeitlicher Folge und voneinander getrennt aufzulisten."]
["Sachausgaben Nr. 3:",null,{"$f":"'Ausgaben,Finanzierung ges'!B20","v":"sonstige Sachausgaben"},{"$nulls":4},"Prüfung:"]
["Beleg-/ Buchungs-Nr.","Beleg-Datum","Tag der Zahlung","Zahlungs-\nempfänger","Zahlungsgrund (Kurzbezeichnung der Ausgabe)","Betrag\nin Euro",null,"nachgewiesene (belegte) Ausgaben","zuwendungs-\nfähiger Betrag","Beanstandungen"]
{"$rows_empty":20}
["Gesamt",{"$nulls":4},{"$f":"SUM(F7:F26)","v":0},null,{"$f":"SUM(H7:H26)","v":0},{"$f":"SUM(I7:I26)","v":0}]

{"sheet":"Belegaufstell.sonstige SA (2)","index":13,"n_rows":27,"n_cols":10,"rows_kept":27,"merged":[[26,0,26,4]]}
["Landeshauptstadt Dresden - Jugendamt",null,null,{"$f":"Deckblatt!R1","v":"Anteilsfinanzierung Schulsozialarbeit"},null,{"$f":"Deckblatt!K4","v":0},{"$nulls":3},{"$f":"F1","v":0}]
[]
["Originalbelege je Ausgabegruppe"]
["Die Ausgaben sind in zeitlicher Folge und voneinander getrennt aufzulisten."]
["Sachausgaben Nr. 3:",null,{"$f":"'Ausgaben,Finanzierung ges'!B20","v":"sonstige Sachausgaben"},null,null,"Seite 2",null,"Prüfung:"]
["Beleg-/ Buchungs-Nr.","Beleg-Datum","Tag der Zahlung","Zahlungs-\nempfänger","Zahlungsgrund (Kurzbezeichnung der Ausgabe)","Betrag\nin Euro",null,"nachgewiesene (belegte) Ausgaben","zuwendungs-\nfähiger Betrag","Beanstandungen"]
{"$rows_empty":20}
["Gesamt",{"$nulls":4},{"$f":"SUM(F7:F26)","v":0},null,{"$f":"SUM(H7:H26)","v":0},{"$f":"SUM(I7:I26)","v":0}]

{"sheet":"Belegaufstell.sonstige SA (3)","index":14,"n_rows":27,"n_cols":10,"rows_kept":27,"merged":[[26,0,26,4]]}
["Landeshauptstadt Dresden - Jugendamt",null,null,{"$f":"Deckblatt!R1","v":"Anteilsfinanzierung Schulsozialarbeit"},null,{"$f":"Deckblatt!K4","v":0},{"$nulls":3},{"$f":"F1","v":0}]
[]
["Originalbelege je Ausgabegruppe"]
["Die Ausgaben sind in zeitlicher Folge und voneinander getrennt aufzulisten."]
["Sachausgaben Nr. 3:",null,{"$f":"'Ausgaben,Finanzierung ges'!B20","v":"sonstige Sachausgaben"},null,null,"Seite 3",null,"Prüfung:"]
["Beleg-/ Buchungs-Nr.","Beleg-Datum","Tag der Zahlung","Zahlungs-\nempfänger","Zahlungsgrund (Kurzbezeichnung der Ausgabe)","Betrag\nin Euro",null,"nachgewiesene (belegte) Ausgaben","zuwendungs-\nfähiger Betrag","Beanstandungen"]
{"$rows_empty":20}
["Gesamt",{"$nulls":4},{"$f":"SUM(F7:F26)","v":0},null,{"$f":"SUM(H7:H26)","v":0},{"$f":"SUM(I7:I26)","v":0}]

{"sheet":"Belegaufstell.sonstige SA (4)","index":15,"n_rows":27,"n_cols":10,"rows_kept":27,"merged":[[26,0,26,4]]}
["Landeshauptstadt Dresden - Jugendamt",null,null,{"$f":"Deckblatt!R1","v":"Anteilsfinanzierung Schulsozialarbeit"},null,{"$f":"Deckblatt!K4","v":0},{"$nulls":3},{"$f":"F1","v":0}]
[]
["Originalbelege je Ausgabegruppe"]
["Die Ausgaben sind in zeitlicher Folge und voneinander getrennt aufzulisten."]
["Sachausgaben Nr. 3:",null,{"$f":"'Ausgaben,Finanzierung ges'!B20","v":"sonstige Sachausgaben"},null,null,"Seite 4",null,"Prüfung:"]
["Beleg-/ Buchungs-Nr.","Beleg-Datum","Tag der Zahlung","Zahlungs-\nempfänger","Zahlungsgrund (Kurzbezeichnung der Ausgabe)","Betrag\nin Euro",null,"nachgewiesene (belegte) Ausgaben","zuwendungs-\nfähiger Betrag","Beanstandungen"]
{"$rows_empty":20}
["Gesamt",{"$nulls":4},{"$f":"SUM(F7:F26)","v":0},null,{"$f":"SUM(H7:H26)","v":0},{"$f":"SUM(I7:I26)","v":0}]

{"sheet":"Belegaufstell.sonstige SA (5)","index":16,"n_rows":27,"n_cols":10,"rows_kept":27,"merged":[[26,0,26,4]]}
["Landeshauptstadt Dresden - Jugendamt",null,null,{"$f":"Deckblatt!R1","v":"Anteilsfinanzierung Schulsozialarbeit"},null,{"$f":"Deckblatt!K4","v":0},{"$nulls":3},{"$f":"F1","v":0}]
[]
["Originalbelege je Ausgabegruppe"]
["Die Ausgaben sind in zeitlicher Folge und voneinander getrennt aufzulisten."]
["Sachausgaben Nr. 3:",null,{"$f":"'Ausgaben,Finanzierung ges'!B20","v":"sonstige Sachausgaben"},null,null,"Seite 5",null,"Prüfung:"]
["Beleg-/ Buchungs-Nr.","Beleg-Datum","Tag der Zahlung","Zahlungs-\nempfänger","Zahlungsgrund (Kurzbezeichnung der Ausgabe)","Betrag\nin Euro",null,"nachgewiesene (belegte) Ausgaben","zuwendungs-\nfähiger Betrag","Beanstandungen"]
{"$rows_empty":20}
["Gesamt",{"$nulls":4},{"$f":"SUM(F7:F26)","v":0},null,{"$f":"SUM(H7:H26)","v":0},{"$f":"SUM(I7:I26)","v":0}]

{"sheet":"Belegaufstellung BM,EPM","index":17,"n_rows":27,"n_cols":10,"rows_kept":27,"merged":[[4,2,4,5],[26,0,26,4]]}
["Landeshauptstadt Dresden - Jugendamt",null,null,{"$f":"Deckblatt!R1","v":"Anteilsfinanzierung Schulsozialarbeit"},null,{"$f":"Deckblatt!K4","v":0},{"$nulls":3},{"$f":"F1","v":0}]
[]
["Originalbelege je Ausgabegruppe"]
["Die Ausgaben sind in zeitlicher Folge und voneinander getrennt aufzulisten."]
["Sachausgaben Nr. 4:",null,{"$f":"'Ausgaben,Finanzierung ges'!B21","v":"Bildungsmaßnahmen/erlebnispädagogische Maßnahmen"},{"$nulls":4},"Prüfung:"]
["Beleg-/ Buchungs-Nr.","Beleg-Datum","Tag der Zahlung","Zahlungs-\nempfänger","Zahlungsgrund (Kurzbezeichnung der Ausgabe)","Betrag\nin Euro",null,"nachgewiesene (belegte) Ausgaben","zuwendungs-\nfähiger Betrag","Beanstandungen"]
{"$rows_empty":20}
["Gesamt",{"$nulls":4},{"$f":"SUM(F7:F26)","v":0},null,{"$f":"SUM(H7:H26)","v":0},{"$f":"SUM(I7:I26)","v":0}]

{"sheet":"Belegaufstellung SA Nr. 5","index":18,"n_rows":27,"n_cols":10,"rows_kept":27,"merged":[[4,2,4,5],[26,0,26,4]]}
["Landeshauptstadt Dresden - Jugendamt",null,null,{"$f":"Deckblatt!R1","v":"Anteilsfinanzierung Schulsozialarbeit"},null,{"$f":"Deckblatt!K4","v":0},{"$nulls":3},{"$f":"F1","v":0}]
[]
["Originalbelege je Ausgabegruppe"]
["Die Ausgaben sind in zeitlicher Folge und voneinander getrennt aufzulisten."]
["Sachausgaben Nr. 5:",null,{"$f":"'Ausgaben,Finanzierung ges'!B22","v":0},{"$nulls":4},"Prüfung:"]
["Beleg-/ Buchungs-Nr.","Beleg-Datum","Tag der Zahlung","Zahlungs-\nempfänger","Zahlungsgrund (Kurzbezeichnung der Ausgabe)","Betrag\nin Euro",null,"nachgewiesene (belegte) Ausgaben","zuwendungs-\nfähiger Betrag","Beanstandungen"]
{"$rows_empty":20}
["Gesamt",{"$nulls":4},{"$f":"SUM(F7:F26)","v":0},null,{"$f":"SUM(H7:H26)","v":0},{"$f":"SUM(I7:I26)","v":0}]

{"sheet":"Belegaufstellung SA Nr. 6","index":19,"n_rows":27,"n_cols":10,"rows_kept":27,"merged":[[4,2,4,5],[26,0,26,4]]}
["Landeshauptstadt Dresden - Jugendamt",null,null,{"$f":"Deckblatt!R1","v":"Anteilsfinanzierung Schulsozialarbeit"},null,{"$f":"Deckblatt!K4","v":0},{"$nulls":3},{"$f":"F1","v":0}]
[]
["Originalbelege je Ausgabegruppe"]
["Die Ausgaben sind in zeitlicher Folge und voneinander getrennt aufzulisten."]
["Sachausgaben Nr. 6:",null,{"$f":"'Ausgaben,Finanzierung ges'!B23","v":0},{"$nulls":4},"Prüfung:"]
["Beleg-/ Buchungs-Nr.","Beleg-Datum","Tag der Zahlung","Zahlungs-\nempfänger","Zahlungsgrund (Kurzbezeichnung der Ausgabe)","Betrag\nin Euro",null,"nachgewiesene (belegte) Ausgaben","zuwendungs-\nfähiger Betrag","Beanstandungen"]
{"$rows_empty":20}
["Gesamt",{"$nulls":4},{"$f":"SUM(F7:F26)","v":0},null,{"$f":"SUM(H7:H26)","v":0},{"$f":"SUM(I7:I26)","v":0}]

{"sheet":"Tabelle1","index":20,"n_rows":0,"n_cols":0,"rows_kept":0}